Cogmind - Beta 12 @@@ ROGUE MODE // 2023.09.17 @ 17:58:33 Player: morimori Result: Destroyed by G-47 Trooper with Particle Gun Performance ------------- Evolutions (2) 1000 Regions Visited (5) 1000 Robots Destroyed (61) 305 Value Destroyed (1252) 1252 Prototype IDs (5) 100 Alien Tech Used (0) 0 Bonus (300) 300 TOTAL SCORE: 3957 Bonus ------- Aligned with FarCom 300 Cogmind --------- Core Integrity 0/550 Matter 290/300 Energy 80/100 System Corruption 0% Temperature Cool (9) Movement Flying (675) Ox8 Location -8/Materials Parts ------- > --- POWER (1) -------- (None) > --- PROPULSION (2) --- Cesium-ion Thruster > --- UTILITY (6) ------ High-capacity Storage Unit Signal Interpreter Weapon Cycler Graphene Brace System Shield > --- WEAPON (2) ------- Longsword +1 > --- INVENTORY (20) --- Light Nuclear Core Flight Unit Flight Unit Flight Unit Large Storage Unit High-capacity Storage Unit Active Sensor Suite Particle Charger Shield Generator PSU Rigger Advanced EMP Blaster Grenade Launcher Katana Katana Deploy-a-Sentry Deploy-a-Sentry Peak State ------------ > --- POWER ------------ Deuterium Engine > --- PROPULSION ------- Wheel > --- UTILITY ---------- High-capacity Storage Unit Signal Interpreter Weapon Cycler Graphene Brace Shield Generator System Shield > --- WEAPON ----------- Katana Longsword +1 > --- INVENTORY -------- Light Nuclear Core Flight Unit Flight Unit Flight Unit Cesium-ion Thruster Large Storage Unit High-capacity Storage Unit Active Sensor Suite Particle Charger Shield Generator PSU Rigger Light Assault Rifle Advanced EMP Blaster Grenade Launcher Katana Deploy-a-Sentry Deploy-a-Sentry [Rating: 40] Favorites ----------- Power Light Ion Engine Engine Light Ion Engine Propulsion Wheel Wheel Wheel Flight Unit Flight Unit Utility Large Storage Unit Device Graphene Brace Storage Large Storage Unit Processor Signal Interpreter Hackware System Shield Weapon Medium Laser Energy Gun Medium Laser Ballistic Gun Assault Rifle Ballistic Cannon Light Cannon Launcher Grenade Launcher Special Weapon Welding Torch Slashing Weapon Longsword +1 Build | -11 -10 -10 -10 -9 -8 ------- Run | Jun Mat Min Exi Min Mat Slots Evolved 4 | . . . . . 4 Power . | . . . . . . Propulsion . | . . . . . . Utility 4 | . . . . . 4 Weapon . | . . . . . . Parts Attached 62 | 6 14 6 1 . 35 Power 6 | 1 2 . . . 3 Engine 6 | 1 2 . . . 3 Core . | . . . . . . Reactor . | . . . . . . Propulsion 16 | 2 4 2 . . 8 Treads . | . . . . . . Leg . | . . . . . . Wheel 13 | 2 4 2 . . 5 Hover . | . . . . . . Flight 3 | . . . . . 3 Utility 14 | 1 4 . . . 9 Device 5 | . . . . . 5 Storage 4 | 1 1 . . . 2 Processor 4 | . 3 . . . 1 Hackware 1 | . . . . . 1 Protection . | . . . . . . Artifact . | . . . . . . Weapon 26 | 2 4 4 1 . 15 Energy Gun 3 | 1 1 . . . 1 Energy Cannon . | . . . . . . Ballistic Gun 6 | 1 . . . . 5 Ballistic Cannon 7 | . 2 2 . . 3 Launcher 5 | . 1 1 . . 3 Special Weapon 1 | . . 1 . . . Impact Weapon . | . . . . . . Slashing Weapon 4 | . . . 1 . 3 Piercing Weapon . | . . . . . . Special Melee Weapon . | . . . . . . Unidentified Prototypes 1 | . . . 1 . . Parts Lost 16 | . . . . . 16 Power 3 | . . . . . 3 Propulsion 7 | . . . . . 7 Utility 4 | . . . . . 4 Weapon 2 | . . . . . 2 Highest Loss Streak 7 | . . . . . 7 To Critical Strikes . | . . . . . . Average Slot Usage (%) 96 | . 99 100 100 100 84 Engine 12 | . 13 14 14 14 8 Wheel 24 | . 27 28 28 28 14 Device 3 | . . . . . 16 Storage 12 | . 14 14 14 14 9 Processor 12 | . 13 14 14 14 10 Hackware 1 | . . . . . 7 Energy Gun 11 | . 14 14 14 14 1 Ballistic Gun 5 | . 7 . . . 11 Ballistic Cannon 6 | . 5 12 11 . 1 Slashing Weapon 1 | . . . 2 14 1 Naked Turns . | . . . . . . Heaviest Build 58 | 14 29 28 28 28 58 Greatest Support 26 | 26 26 20 20 20 20 Greatest Overweight (x) 5 | 3 2 1 1 1 5 Average Overweight (x) 1 | . . 1 1 1 2 Largest Inventory Capacity 20 | 8 15 15 15 15 20 Average Capacity 14 | 7 13 15 15 15 18 Most Carried 20 | 8 15 15 15 15 20 Average Carried 14 | 4 12 14 14 15 17 Final Capacity 20 | 8 15 15 15 15 20 Final Carried 18 | 8 14 15 15 15 18 Class Distribution -------------------- 50% | Mutant 49% | Scavenger-Mutant Dominant Class ---------------- Mutant | -10/Materials Scavenger-Mutant | -10/Mines Scavenger-Mutant | -10/Exiles Scavenger-Mutant | -9/Mines Scavenger-Mutant | -8/Materials Resources | -11 -10 -10 -10 -9 -8 ----------- Run | Jun Mat Min Exi Min Mat Matter Collected 1256 | 299 279 156 . 10 512 Remotely . | . . . . . . Salvage Created 1790 | 178 593 35 . 115 869 Parts 141 | 23 45 13 . 5 55 Haulers Intercepted . | . . . . . . Recyclers Shooed 3 | 1 2 . . . . Parts Field Recycled . | . . . . . . Retrieved Matter . | . . . . . . Parts Self-Destructed . | . . . . . . Prevented . | . . . . . . Kills | -11 -10 -10 -10 -9 -8 ------- Run | Jun Mat Min Exi Min Mat Combat Hostiles Destroyed 38 | . 9 6 . . 23 Melee 2 | . . . . . 2 Guns 17 | . 8 . . . 9 Cannons 3 | . 1 . . . 2 AOE 16 | . . 6 . . 10 Classes Destroyed 11 | 3 4 . . 1 3 Worker 8 | 2 2 . . . 4 Builder 1 | . . . . 1 . Tunneler 4 | 4 . . . . . Recycler 6 | 1 3 . . 1 1 Operator 1 | . 1 . . . . Watcher 3 | . 3 . . . . Swarmer 17 | . 3 6 . . 8 Grunt 14 | . 6 . . . 8 Duelist 2 | . . . . . 2 Sentry 4 | . . . . . 4 Heavy 1 | . . . . . 1 Best Kill Streak 8 | 4 3 3 . 1 8 Combat Bots Only 7 | . 2 3 . . 7 Max Kills in Single Turn 3 | 1 1 3 . 1 3 Gunslinging . | . . . . . . Exploded 3 | . . 3 . . 2 Melee 1 | . . . . . 1 Uniques/NPCs Destroyed . | . . . . . . Combat | -11 -10 -10 -10 -9 -8 -------- Run | Jun Mat Min Exi Min Mat Damage Taken 2022 | . 229 9 . . 1784 Core 580 | . 27 . . . 553 Absorbed by Shields 158 | . . . . . 158 Core Remaining (%) 94 | 100 . . . 89 . Volleys Fired 121 | 13 50 4 . . 54 Largest 2 | 2 2 2 . . 2 Hottest 85 | 70 85 85 . . 85 Shots Fired 238 | 26 98 8 . . 106 Gun 204 | 26 88 4 . . 86 Cannon 20 | . 8 1 . . 11 Launcher 14 | . 2 3 . . 9 Special . | . . . . . . Kinetic 137 | 13 47 1 . . 76 Thermal 87 | 13 49 4 . . 21 Explosive 14 | . 2 3 . . 9 Electromagnetic . | . . . . . . Robot Hit Streak 18 | 4 12 1 . . 18 Robot Miss Streak 6 | 2 6 2 . . 4 Penetration Max . | . . . . . . Secondary Targets . | . . . . . . Shots Hit Robots 158 | 15 55 2 . 2 84 Core Hits 101 | 8 26 8 . 1 58 Critical Kills . | . . . . . . Critical Parts Destroyed . | . . . . . . Critical Strikes 5 | 1 2 . . . 2 Burn 3 | 1 2 . . . . Blast 1 | . . . . . 1 Sever 1 | . . . . . 1 Melee Attacks 11 | . . . . 2 9 Impact . | . . . . . . Slashing 11 | . . . . 2 9 Piercing . | . . . . . . Sneak Attacks 2 | . . . . 2 . Combat Hostiles . | . . . . . . Follow-up Attacks . | . . . . . . Damage Inflicted 3296 | 186 730 201 . 193 1986 Guns 1546 | 186 643 . . . 717 Cannons 247 | . 87 . . . 160 Explosions 992 | . . 201 . . 791 Melee 511 | . . . . 193 318 Ramming . | . . . . . . Kinetic 1169 | 86 386 . . . 697 Thermal 624 | 100 344 . . . 180 Explosive 992 | . . 201 . . 791 Electromagnetic . | . . . . . . Impact . | . . . . . . Slashing 511 | . . . . 193 318 Piercing . | . . . . . . Highest Corruption 1 | . 1 1 1 1 . Average Corruption 1 | . 1 1 1 1 . Corruption Purged . | . . . . . . Corruption Blocked . | . . . . . . Effects 23 | . 9 12 2 . . Message Errors 5 | . 3 2 . . . Matter Fused 4 | . . 4 . . . Heat Flow Errors 3 | . 1 2 . . . Energy Discharges 4 | . 1 2 1 . . Data Loss (minor) 3 | . 2 1 . . . Data Loss (major) 2 | . . 1 1 . . Alerts 1 | . 1 . . . . Weapon Failures 1 | . 1 . . . . Overload Shots . | . . . . . . Overflow Damage 117 | . . . . 67 50 Projectiles . | . . . . . . Explosions 50 | . . . . . 50 Melee 67 | . . . . 67 . Knockbacks 2 | . . . . . 2 Impact . | . . . . . . Kinetic 2 | . . . . . 2 Secondary . | . . . . . . Self-Inflicted Damage 35 | . . . . . 35 Shots 1 | . . . . . 1 Rammed . | . . . . . . Targets Rammed . | . . . . . . Kicked . | . . . . . . Crushed . | . . . . . . Highest Temperature 183 | 74 143 159 . . 183 Average Temperature 37 | 27 30 53 . . 55 Received Heat Transfer 579 | . 90 . . . 489 Siege Activations . | . . . . . . Robots Corrupted . | . . . . . . Combat Hostiles . | . . . . . . Parts Fried . | . . . . . . Impact Corruptions . | . . . . . . Robots Melted . | . . . . . . Combat Hostiles . | . . . . . . Parts Melted 3 | . 2 . . . 1 Heat Transferred 2072 | 370 1184 . . . 518 Parts Sabotaged . | . . . . . . Parts Stolen . | . . . . . . Parts Stripped . | . . . . . . Power Chain Reactions . | . . . . . . Missiles Intercepted . | . . . . . . Alert | -11 -10 -10 -10 -9 -8 ------- Run | Jun Mat Min Exi Min Mat Peak Influence 385 | 35 264 180 . 10 385 Initial 22 | . 22 . . . 3 Average 113 | 14 104 88 . 4 178 Maximum Alert Level 1 | . 1 . . . 1 Low Security (%) 91 | 100 93 100 . 100 77 Level 1 8 | . 6 . . . 22 Level 2 . | . . . . . . Level 3 . | . . . . . . Level 4 . | . . . . . . Level 5 . | . . . . . . High Security . | . . . . . . Max Security . | . . . . . . Squads Dispatched 7 | . 2 . . . 5 Investigation 1 | . 1 . . . . Extermination . | . . . . . . Reinforcement 4 | . 1 . . . 3 Assault . | . . . . . . Garrison 2 | . . . . . 2 Intercept . | . . . . . . Searches Triggered . | . . . . . . Construction Impeded . | . . . . . . Haulers Reinforced . | . . . . . . Active Scanning Responses . | . . . . . . Cargo Convoy Interrupts . | . . . . . . Stealth | -11 -10 -10 -10 -9 -8 --------- Run | Jun Mat Min Exi Min Mat Distress Signals 10 | . 4 1 . . 5 Communications Jammed . | . . . . . . Distress Signals . | . . . . . . Times Spotted 72 | . 19 3 . . 50 Peak Tracking Total 9 | . 2 2 . . 9 Tactical Retreats 3 | . 1 . . . 2 Traps | -11 -10 -10 -10 -9 -8 ------- Run | Jun Mat Min Exi Min Mat Traps Triggered 4 | . 4 . . . . Indirectly . | . . . . . . Trap Hack Attempts . | . . . . . . Triggered . | . . . . . . Disarmed . | . . . . . . Reprogrammed . | . . . . . . Reused . | . . . . . . Traps Extracted . | . . . . . . Installed . | . . . . . . Triggered . | . . . . . . Machines | -11 -10 -10 -10 -9 -8 ---------- Run | Jun Mat Min Exi Min Mat Machines Disabled . | . . . . . . Max in Single Turn . | . . . . . . Machines Repaired . | . . . . . . Machines Sabotaged . | . . . . . . Overloaded Fab Kills . | . . . . . . Hacking | -11 -10 -10 -10 -9 -8 --------- Run | Jun Mat Min Exi Min Mat Machines Accessed 17 | . 7 . 4 . 6 Terminals 10 | . 7 . . . 3 Fabricators . | . . . . . . Repair Stations 1 | . . . . . 1 Recycling Units 1 | . . . . . 1 Scanalyzers 1 | . . . . . 1 Garrison Access . | . . . . . . Total Hacks 87 | . 19 . 49 . 19 Successful 64 | . 7 . 49 . 8 Failed 22 | . 11 . . . 11 Catastrophic 9 | . 4 . . . 5 Database Lockouts 1 | . 1 . . . . Manual 22 | . 15 . 1 . 6 Terminals 27 | . 19 . . . 8 Fabricators . | . . . . . . Repair Stations 2 | . . . . . 2 Recycling Units 1 | . . . . . 1 Scanalyzers 8 | . . . . . 8 Garrison Access . | . . . . . . Terminal Hacks 58 | . 7 . 49 . 2 Record 49 | . . . 49 . . Part Schematic 2 | . 2 . . . . Robot Analysis 2 | . 2 . . . . Prototype ID Bank 2 | . 2 . . . . Unreport Threat 3 | . 1 . . . 2 Fabricator Hacks . | . . . . . . Repair Station Hacks 1 | . . . . . 1 Scan Component 1 | . . . . . 1 Recycling Unit Hacks 1 | . . . . . 1 Report Inventory 1 | . . . . . 1 Scanalyzer 4 | . . . . . 4 Insert Component 3 | . . . . . 3 Analyze 1 | . . . . . 1 Garrison Access Hacks . | . . . . . . Unauthorized Hacks . | . . . . . . Terminals . | . . . . . . Fabricators . | . . . . . . Repair Stations . | . . . . . . Recycling Units . | . . . . . . Scanalyzers . | . . . . . . Garrison Access . | . . . . . . Data Cores Recovered . | . . . . . . Used . | . . . . . . Hacking Detections 12 | . 7 . . . 5 Full Trace Events . | . . . . . . Feedback Events . | . . . . . . Feedback Blocked . | . . . . . . Robot Schematics Acquired . | . . . . . . Robots Built . | . . . . . . Authchips . | . . . . . . Time . | . . . . . . Total Robot Build Rating . | . . . . . . Part Schematics Acquired 3 | . 2 . . . 1 Parts Built . | . . . . . . Authchips . | . . . . . . Time . | . . . . . . Total Part Build Rating . | . . . . . . Parts Repaired . | . . . . . . Time . | . . . . . . Parts Recycled . | . . . . . . Recycled Matter . | . . . . . . Retrieved Matter . | . . . . . . Retrieved Components . | . . . . . . Parts Scanalyzed 1 | . . . . . 1 Part Schematics Acquired 1 | . . . . . 1 Parts Damaged . | . . . . . . Bothacking | -11 -10 -10 -10 -9 -8 ------------ Run | Jun Mat Min Exi Min Mat Used RIF Installer . | . . . . . . Robots Hacked . | . . . . . . Non-combat . | . . . . . . Combat . | . . . . . . Robot Hacks Applied . | . . . . . . Relay Couplers Released . | . . . . . . Fabnet Peak Effective % . | . . . . . . Robots Rewired . | . . . . . . Allies Hacked . | . . . . . . Hacks Repelled . | . . . . . . Allies | -11 -10 -10 -10 -9 -8 -------- Run | Jun Mat Min Exi Min Mat Total Allies 3 | . . 3 . . . Largest Group 3 | . . 3 1 . . Highest-Rated Group 40 | . . 40 16 . . Highest-Rated Ally 16 | . . 16 16 . . Total Orders . | . . . . . . Ally Attacks . | . . . . . . Total Damage . | . . . . . . Kills . | . . . . . . Allies Corrupted . | . . . . . . Allies Melted . | . . . . . . Turrets Deployed 1 | . . . 1 . . Intel | -11 -10 -10 -10 -9 -8 ------- Run | Jun Mat Min Exi Min Mat Robot Analysis Total 2 | . 2 . . . . Derelict Logs Recovered 1 | . . 1 . . . Drone Launches . | . . . . . . Drone Recoveries . | . . . . . . Exploration | -11 -10 -10 -10 -9 -8 ------------- Run | Jun Mat Min Exi Min Mat Turns Passed 4106 | 147 1447 743 717 131 921 Spaces Moved 3440 | 90 1240 721 739 134 516 Core 6 | 6 . . . . . Treads . | . . . . . . Legs . | . . . . . . Wheels 3429 | 84 1240 721 739 134 511 Hover . | . . . . . . Flight 5 | . . . . . 5 Fastest Speed 50 | 50 80 95 95 95 95 Average Speed 96 | 93 92 95 95 95 113 Slowest Speed 437 | 200 110 95 95 95 437 Overloaded Moves . | . . . . . . Propulsion Burnouts . | . . . . . . Robots Hopped . | . . . . . . Cave-ins Triggered . | . . . . . . Exploration Rate (%) 60 | 5 99 99 94 17 50 Regions Visited 5 Branch Regions 3 Pre-discovered Areas 2 | . . 1 1 . . Known Exits Taken 4 | . 1 1 1 1 . Unknown Exits Taken 1 | 1 . . . . . Scrap Searched 3 | . . 2 . 1 . Spaces Dug . | . . . . . . Terrain Destroyed 107 | . 22 19 . . 66 Melee . | . . . . . . Projectile . | . . . . . . AOE 107 | . 22 19 . . 66 Terrain Rammed . | . . . . . . Walls Destroyed . | . . . . . . Machines Disabled . | . . . . . . Actions | -11 -10 -10 -10 -9 -8 --------- Run | Jun Mat Min Exi Min Mat Total 3993 | 126 1454 769 756 135 753 Wait 257 | 2 111 36 . . 108 Move 3435 | 89 1239 720 738 133 516 Hop . | . . . . . . Pick Up 56 | 12 21 . 7 . 16 Fast Attach 24 | 6 4 2 . . 12 Attach 11 | . . . . . 11 Detach 4 | . . . . . 4 Swap 27 | . 10 4 1 . 12 Drop 44 | 4 19 3 7 . 11 Fire 121 | 13 50 4 . . 54 Melee 11 | . . . . 2 9 Ram . | . . . . . . Kick . | . . . . . . Crush . | . . . . . . Escape Stasis . | . . . . . . Rewire 3 | . . . 3 . . Trap . | . . . . . . Miscellaneous . | . . . . . . Route ------- -11/Junkyard -10/Materials (discovered 4 exits: *Mat x3 / *Min) -10/Mines (discovered 3 exits: *Mat x2 / *Exi) -10/Exiles (discovered 2 exits: *Min x2) -9/Mines -8/Materials History --------- Turn | Location | Event 22 | -11/Junkyard | Discovered new exit (range 16) 148 | -11/Junkyard | Entered Materials 221 | -10/Materials | Discovered new exit (range 18) 316 | -10/Materials | Build established: Mutant 517 | -10/Materials | Discovered new exit (range 6) 568 | -10/Materials | Discovered new exit (range 4) 939 | -10/Materials | Discovered new exit (range 15) 1383 | -10/Materials | Identified exit to Materials 1485 | -10/Materials | Central database locked down 1594 | -10/Materials | Identified exit to Mines 1595 | -10/Materials | Entered Mines 1597 | -10/Mines | Assisted by bots powering up and referring to "LRC-V3" 1615 | -10/Mines | Assembled infested the area 1620 | -10/Mines | Assisted by a Guerilla fighting off Assembled 1909 | -10/Mines | Learned Materials terminal intel 1915 | -10/Mines | Discovered exit to Materials (range 14) 1921 | -10/Mines | Learned location of Storage (-9) 2084 | -10/Mines | Deemed a non-threat by the Exiles lab entrance 2085 | -10/Mines | Discovered new exit (range 5) 2087 | -10/Mines | Identified exit to Exiles 2114 | -10/Mines | Discovered exit to Materials (range 5) 2163 | -10/Mines | Build established: Scavenger-Mutant 2338 | -10/Mines | Entered Exiles 2338 | -10/Exiles | Accompanied by 1 ally 2368 | -10/Exiles | Met 8R-AWN 2383 | -10/Exiles | Met EX-HEX 2470 | -10/Exiles | Met EX-DEC 2507 | -10/Exiles | Visited The Gauntlet 2642 | -10/Exiles | Learned location of Zion (-7) 2705 | -10/Exiles | Discovered new exit (range 11) 2712 | -10/Exiles | Identified exit to Mines 2772 | -10/Exiles | Met EX-BIN 2895 | -10/Exiles | Aligned with FarCom system 2896 | -10/Exiles | Given EX-Vault access code 2919 | -10/Exiles | Opened EX-Vault 2925 | -10/Exiles | Found Prototype Slashing Weapon 2928 | -10/Exiles | Found Deploy-a-Sentry 2930 | -10/Exiles | Found Prototype Device 2932 | -10/Exiles | Found Deploy-a-Sentry 2935 | -10/Exiles | DAS Turret deployed 2947 | -10/Exiles | Identified Longsword +1 2963 | -10/Exiles | Warned to stay clear of 0b10 Research branches 3032 | -10/Exiles | Discovered exit to Mines (range 14) 3055 | -10/Exiles | Stole three prototypes: Longsword +1, Deploy-a-Sentry, PSU Rigger 3055 | -10/Exiles | Entered Mines 3077 | -9/Mines | Discovered new exit (range 15) 3088 | -9/Mines | Identified exit to Materials 3186 | -9/Mines | Entered Materials 3186 | -8/Materials | Evolved 4 slots: Utility x4 3187 | -8/Materials | Loaded intel: 9 terminal locations 3276 | -8/Materials | Lost 3 parts (1p2n) 3287 | -8/Materials | Destroyed 7 combat bots 3495 | -8/Materials | Core integrity fell below 50% 3525 | -8/Materials | Lost 7 parts (1p3n3u) 3574 | -8/Materials | Found Prototype Device 4000 | -8/Materials | Garrison activated, responded to threat 4002 | -8/Materials | Core integrity fell below 20% 4055 | -8/Materials | Destroyed 7 combat bots 4065 | -8/Materials | Lost 3 parts (1n2w) 4107 | -8/Materials | Destroyed by G-47 Trooper with Particle Gun Last Messages --------------- 03967_ Y-45 Defender destroyed. 03981_ G-47 Trooper destroyed. 03988_ Y-45 Defender destroyed. 03993_ Acquired 60 matter. 03995_ Acquired 29 matter. 04000_ Y-45 Defender calls for garrison reinforcements. 04000_ ALERT: Activating Garrison Access M001. 04005_ Y-45 Defender destroyed. 04009_ Hvy. Assault Rifle destroyed. 04009_ Wheel destroyed. 04011_ G-47 Trooper Aluminum Leg severed. 04023_ G-47 Trooper destroyed. 04034_ L-31 Rogue destroyed. 04034_ Lgt. Assault Rifle destroyed. 04037_ Acquired 29 matter. 04082_ Connecting with Terminal... 04100_ G-47 Trooper emerges from the garrison. 04105_ Shield Generator destroyed. 04105_ Deuterium Engine destroyed. 04106_ Wheel destroyed. Map ----- +----------------------------------------------------+ | " #??????????????????????????????? | | " #??????????????????????????????? | | #??????????????????????????????? | | ###??????????????????????????????? | | ?????????????????????????????????? | | ?????????????????????????????????? | | ?????????????????????????????????? | | ###??????????????????????????????? | | ??????????????????????????????? | | " ?????????????????????????????? | | " ######?????????????? ???????? | | " + #???""????????? ???????? | | # #???"T????????? ???????? | | ##### #???""????????# ???????? | | #?????????????#wg#??????? | | ### ######+########gg#??????? | | ??# a #??????? | | ??# +??????? | | ??# #??????? | | ??# #??????? | | ### #??????? | | w #??????? | | ### ### ####### #??????? | | ??# ### ##?? #????# ###????? | | ??# #?# #????##????# ?????? | | ??# #?# #??????????# @#??????? | | ### ###/####???????# #??????? | | # [[ #???????# #??????? | | ###### # [ #???????# #??????? | | ?????#/#// "" #???????# #??????? | | ???????# T" #???????#g ######## | | ???????# "" #########r g# """ # | | ???????# + ^ g + """ # | | ???????##### ## # """ # | | ???????######## "" *# # | | ???????/ G" # [ # | | ???????# = "" !#b # | | ######!%[! ! #+###### | | %!=!* # # | | #######=####+####T#T## + T # | | ????????#[#????????#####+## # # | | ????????#!#???????????????# # # | | ????????#*#??""???????????# # # | | ????????#%#??"T???????????# # # | | ????????#*#??""???????????# # # | | ????????#*#???????????????# # # | | ????????#!#???????????????# # *# | | ????????#%################# ###### | | ????![!=+[=%! #????? | | ????????#####################????? | +----------------------------------------------------+ Best States ------------- Heat Dissipation 41 Energy Generation 14 Energy Capacity 275 Matter Stores 300 Matter Capacity 300 Sight Range 18 Terrain Scan Density 110 Weapon Cycling 15 Evasion (%) 44 Targeting Accuracy 5 Defensive Hacking 10 Item Schematics ----------------- Aluminum Leg | -10/Materials | Hacked Flight Unit | -10/Materials | Hacked Deuterium Engine | -8/Materials | Scanalyzed Robot Schematics ------------------ None Fabricated ------------ Nothing Alien Tech Used ----------------- None Achievements -------------- None Challenges ------------ None Game ------ Seed StructuralLayeredProtection Manual? 0 Play Time 00:52:00 Cumulative 85.7 hours Start 2023.09.12 @ 23:08:29 End 2023.09.17 @ 17:58:33 Sessions 2 Manual Loads 0 Difficulty Rogue Special Mode None Game No. 56 Rogue 56 Adventurer 0 Explorer 0 Win Type - Total 0 Types 0/0/0/0/0/0/0/0/0 Lore% 37 Gallery% 40 Achievement% 33 Wizard Run 0 Options --------- ASCII 0 Keyboard 1 Movement Vi Keybinds 0 Fullscreen 2 Font 18/SmallcapsGlow Map View 76x50 Tactical HUD 1 Map Filters NONE Filters NONE Steam 1 RUN: e43985b6-bc47-4fc9-abb6-55854ceae2bd